bitfinex/quotes_ETHUSD_20250110
["timestamp","ask_amount","ask_price","bid_price","bid_amount"]
[1736510118420,8.3876,3313.9,3313.4,0.211]
[1736510123159,3.0176,3313.9,3313.4,0.211]
[1736510123358,3.0176,3313.9,3313.5,0.03836448]
[1736510127044,3.01744,3314.1,3313.5,0.03836448]
[1736510127228,3.01686,3314.7,3313.6,0.0451772]
[1736510127427,3.01686,3314.7,3313.6,3.03278]
[1736510127628,3.01686,3314.7,3313.8,0.015]
[1736510127930,3.01686,3314.7,3314.0,0.0075]
[1736510128128,3.01686,3314.7,3314.1,0.03801687]
[1736510128536,2.77589817,3314.9,3314.1,0.03801687]
[1736510128937,3.01681,3314.8,3314.1,0.03801687]
[1736510129174,3.01688,3314.7,3314.1,0.03801687]
[1736510130099,0.8328,3315.4,3314.2,0.015]
[1736510130257,3.01643,3315.2,3314.4,0.015]
[1736510130639,3.01643,3315.2,3314.5,0.03785468]
[1736510130935,2.77589817,3315.4,3314.6,0.015]
[1736510131274,3.01631,3315.3,3314.7,0.0377736]
[1736510131452,3.01643,3315.2,3314.7,0.0377736]
[1736510132183,2.77589817,3315.1,3314.7,0.0377736]
[1736510132375,5.79242817,3315.1,3314.7,0.0377736]
[1736510134591,2.77589817,3315.1,3314.7,0.0377736]
[1736510134985,3.01644,3315.2,3314.7,0.0377736]
[1736510144801,3.01644,3315.2,3314.8,0.211]
[1736510145105,3.01644,3315.2,3314.9,0.03597552]
[1736510145468,3.01644,3315.2,3314.8,0.211]
[1736510145804,3.01644,3315.2,3314.9,0.03597552]
[1736510145991,3.01644,3315.2,3314.8,0.211]
[1736510146296,2.77589817,3315.3,3314.9,0.03597552]
[1736510146460,5.79221817,3315.3,3314.9,0.03597552]
[1736510146660,5.79221817,3315.3,3314.8,0.211]
[1736510147122,5.79221817,3315.3,3314.9,0.03597552]
[1736510147597,5.79221817,3315.3,3314.8,0.211]
[1736510147802,5.79221817,3315.3,3314.9,0.03597552]
[1736510148106,5.79221817,3315.3,3314.8,0.211]
[1736510148402,5.79221817,3315.3,3314.9,0.03597552]
[1736510148704,5.79221817,3315.3,3314.8,0.211]
[1736510149093,5.79221817,3315.3,3314.9,0.03597552]
[1736510149406,5.79221817,3315.3,3314.8,0.211]
[1736510149588,5.79221817,3315.3,3314.9,0.03597552]
[1736510149906,5.79221817,3315.3,3314.8,0.211]
[1736510150293,5.79221817,3315.3,3314.9,0.03598459]
[1736510150803,5.79221817,3315.3,3314.8,0.211]
[1736510151007,5.79221817,3315.3,3314.9,0.03598459]
[1736510151172,5.79221817,3315.3,3314.8,0.211]
[1736510151374,5.79221817,3315.3,3315.0,0.03594406]
[1736510151596,6.42643999,3315.3,3314.8,0.211]
[1736510151903,6.42643999,3315.3,3315.1,0.03590353]
[1736510152067,6.42643999,3315.3,3314.8,0.211]
[1736510152471,6.42643999,3315.3,3314.9,0.03598459]
[1736510152883,6.42643999,3315.3,3314.8,0.211]
[1736510153372,6.42643999,3315.3,3314.9,0.03598459]
[1736510153612,6.42643999,3315.3,3314.8,0.211]
[1736510153914,6.42643999,3315.3,3314.9,0.03598459]
[1736510154385,6.42643999,3315.3,3314.8,0.211]
[1736510154588,6.42643999,3315.3,3314.9,0.03598459]
[1736510154786,6.42643999,3315.3,3314.8,0.211]
[1736510155108,6.42643999,3315.3,3314.9,0.03598459]
[1736510155304,1.31283038,3315.0,3314.9,0.03598459]
[1736510155507,1.31283038,3315.0,3314.8,0.211]
[1736510155876,1.31283038,3315.0,3314.9,0.03598459]
[1736510159633,3.01645,3315.2,3314.9,0.03598459]
[1736510159826,1.31283038,3315.0,3314.9,0.03598459]
[1736510165041,3.01618,3315.5,3314.9,0.03598459]
[1736510165238,1.31283038,3315.5,3314.9,0.03598459]
[1736510165398,1.31283038,3315.3,3314.9,0.0075]
[1736510165601,1.31283038,3315.3,3315.0,0.03538682]
[1736510165805,6.19216076,3315.1,3315.0,0.03538682]
[1736510166030,0.55,3315.0,3313.8,7.24766]
[1736510166231,1.31283038,3314.3,3314.1,0.60523842]
[1736510166561,1.31283038,3314.5,3314.1,0.60523842]
[1736510166710,1.31283038,3314.5,3314.2,0.03575189]
[1736510167136,1.31283038,3314.7,3314.3,0.211]
[1736510167333,3.44922004,3315.3,3314.3,0.211]
[1736510167334,3.01616,3315.5,3314.6,0.015]
[1736510167522,3.01625,3315.4,3314.8,0.0075]
[1736510167842,2.77297038,3315.3,3314.9,0.03560398]
[1736510168409,2.77297038,3315.3,3314.5,0.0225]
[1736510168750,2.77297038,3315.3,3314.7,0.015]
[1736510168945,2.77297038,3315.3,3314.8,0.03564451]
[1736510169141,2.77297038,3315.3,3314.5,0.0225]
[1736510169341,5.78930038,3315.3,3314.9,0.211]
[1736510169546,5.78930038,3315.3,3315.0,0.03556345]
[1736510171343,3.01643,3315.2,3315.0,0.03556345]
[1736510171512,3.01643,3315.2,3315.1,0.211]
[1736510171712,2.77297038,3315.3,3315.1,0.211]
[1736510171911,3.40046341,3315.3,3315.1,0.211]
[1736510172848,6.41679341,3315.3,3315.1,0.211]
[1736510174350,5.78930038,3315.3,3315.1,0.211]
[1736510174553,2.77297038,3315.3,3315.2,0.03532393]
[1736510174851,2.77297038,3315.3,3315.1,0.211]
[1736510175269,2.77297038,3315.3,3315.2,0.03532393]
[1736510175972,5.78901038,3315.6,3315.2,0.24632393]
[1736510176116,5.78901038,3315.6,3315.2,0.211]
[1736510176977,5.78901038,3315.6,3315.3,0.0352834]
[1736510177229,5.78901038,3315.6,3315.2,0.211]
[1736510177376,5.78901038,3315.6,3315.3,0.0352834]
[1736510177599,5.78901038,3315.6,3315.2,0.211]
[1736510177739,5.78901038,3315.6,3315.3,0.0352834]
[1736510177941,5.78901038,3315.6,3315.2,0.211]
[1736510178186,5.78901038,3315.6,3315.3,0.0352834]
[1736510178392,5.78901038,3315.6,3315.2,0.211]
[1736510178692,5.78901038,3315.6,3315.3,0.0352834]
[1736510179196,5.78901038,3315.6,3315.2,0.211]
[1736510179400,5.78901038,3315.6,3315.3,0.0352834]
[1736510179566,5.78901038,3315.6,3315.2,0.211]
[1736510179877,3.01616,3315.5,3315.3,0.0352834]
[1736510180280,3.01616,3315.5,3315.2,0.211]
[1736510181668,3.01616,3315.5,3315.3,0.0352834]
[1736510182069,3.01616,3315.5,3315.2,0.211]
[1736510182458,3.01616,3315.5,3315.3,0.0352834]
[1736510182970,3.01616,3315.5,3315.2,0.211]
[1736510183344,3.01616,3315.5,3315.3,0.0352834]
[1736510183578,3.01616,3315.5,3315.2,0.211]
[1736510183878,3.01616,3315.5,3315.4,0.03524288]
[1736510184081,3.01616,3315.5,3315.3,0.0352834]
[1736510184282,3.01616,3315.5,3315.2,0.211]
[1736510184573,3.01616,3315.5,3315.3,0.0352834]
[1736510184784,3.01616,3315.5,3315.2,0.211]
[1736510185085,3.01616,3315.5,3315.4,0.03524288]
[1736510185249,3.01616,3315.5,3315.2,0.211]
[1736510185250,3.01616,3315.5,3315.3,0.0352834]
[1736510185452,3.01616,3315.5,3315.2,0.211]
[1736510186980,3.01616,3315.5,3315.3,0.0352834]
[1736510187155,3.01616,3315.5,3315.2,0.211]
[1736510187548,3.01616,3315.5,3315.3,0.03527887]
[1736510187748,3.01616,3315.5,3315.2,0.211]
[1736510188173,2.77297038,3315.6,3315.3,0.03527887]
[1736510188385,3.56605,3315.6,3315.2,0.211]
[1736510188792,3.56605,3315.6,3315.3,0.03527887]
[1736510189088,3.56605,3315.6,3315.2,0.211]
[1736510189454,1.31256569,3315.4,3315.3,0.03493923]
[1736510189856,1.31256569,3315.4,3315.2,0.211]
[1736510190365,1.31256569,3315.4,3315.3,0.03493923]
[1736510190569,1.31256569,3315.4,3315.2,0.211]
[1736510190970,1.31256569,3315.4,3315.3,0.03493923]
[1736510191287,1.31256569,3315.4,3315.2,0.211]
[1736510191679,1.31256569,3315.4,3315.3,0.03493923]
[1736510191996,1.31256569,3315.4,3315.2,0.211]
[1736510192204,1.31256569,3315.4,3315.3,0.03493923]
[1736510192499,1.31256569,3315.4,3315.2,0.211]
[1736510192994,1.31256569,3315.4,3315.3,0.03493923]
[1736510193353,1.31256569,3315.4,3315.2,0.211]
[1736510193757,1.31256569,3315.4,3315.3,0.03493923]
[1736510194057,1.31256569,3315.4,3315.2,0.211]
[1736510194472,1.31256569,3315.4,3315.3,0.03493923]
[1736510194797,1.31256569,3315.4,3315.2,0.211]
[1736510195182,1.31256569,3315.4,3315.3,0.03493923]
[1736510195379,1.31256569,3315.4,3315.2,0.211]
[1736510195692,1.31256569,3315.4,3315.3,0.03493923]
[1736510196095,1.31256569,3315.4,3315.2,0.211]
[1736510196596,1.31256569,3315.4,3315.3,0.03493923]
[1736510196894,1.31256569,3315.4,3315.2,0.211]
[1736510197302,1.31256569,3315.4,3315.3,0.03493923]
[1736510197697,1.31256569,3315.4,3315.2,0.211]
[1736510198074,1.31256569,3315.4,3315.3,0.03493923]
[1736510198500,1.31256569,3315.4,3315.2,0.211]
[1736510198899,1.31256569,3315.4,3315.3,0.03493923]
[1736510199497,1.31256569,3315.4,3315.2,0.211]
[1736510199865,1.31256569,3315.4,3315.3,0.034903]
[1736510200295,1.31256569,3315.4,3315.2,0.211]
[1736510200706,1.31256569,3315.4,3315.3,0.034903]
[1736510201066,1.31256569,3315.4,3315.2,0.211]
[1736510201465,1.31256569,3315.4,3315.3,0.034903]
[1736510201980,1.31256569,3315.4,3315.2,0.211]
[1736510202502,1.31256569,3315.4,3315.3,0.034903]
[1736510203004,1.31256569,3315.4,3315.2,0.211]
[1736510203301,1.31256569,3315.4,3315.3,0.034903]
[1736510203904,1.31256569,3315.4,3315.2,0.211]
[1736510204294,1.31256569,3315.4,3315.3,0.034903]
[1736510204606,1.31256569,3315.4,3315.2,0.211]
[1736510204767,1.31256569,3315.4,3315.3,0.034903]
[1736510204967,1.31256569,3315.4,3315.2,0.211]
[1736510205164,4.32881569,3315.4,3315.2,0.211]
[1736510205403,4.32881569,3315.4,3315.3,0.034903]
[1736510205603,4.32881569,3315.4,3315.2,0.211]
[1736510205905,4.32881569,3315.4,3315.3,0.034903]
[1736510206269,4.32881569,3315.4,3315.2,0.211]
[1736510206695,4.32881569,3315.4,3315.3,0.034903]
[1736510207511,4.32881569,3315.4,3315.2,0.211]
[1736510207874,4.32881569,3315.4,3315.3,0.034903]
[1736510208274,4.32881569,3315.4,3315.2,0.211]
[1736510208696,4.32881569,3315.4,3315.3,0.034903]
[1736510209101,4.32881569,3315.4,3315.2,0.211]
[1736510209418,4.32881569,3315.4,3315.3,0.034903]
[1736510209716,4.32881569,3315.4,3315.2,0.211]
[1736510210017,4.32881569,3315.4,3315.3,0.03489847]
[1736510210211,4.32881569,3315.4,3315.2,0.211]
[1736510210416,4.32881569,3315.4,3315.3,0.03489847]
[1736510210609,4.32881569,3315.4,3315.2,0.211]
[1736510210913,4.32881569,3315.4,3315.3,0.03489847]
[1736510211483,4.32881569,3315.4,3315.2,0.211]
[1736510211695,4.32881569,3315.4,3315.3,0.211]
[1736510211915,4.32881569,3315.4,3315.3,0.24589847]
[1736510212214,4.32881569,3315.4,3315.3,0.211]
[1736510212406,1.31256569,3315.4,3315.3,0.211]
[1736510214772,3.56608,3315.6,3315.3,0.211]
[1736510214881,0.8004,3315.8,3315.3,0.211]
[1736510214882,3.01589,3315.8,3315.3,0.211]
[1736510215085,1.31256569,3315.7,3315.3,0.211]
[1736510215288,0.55,3315.9,3315.3,0.211]
[1736510215518,1.31256569,3315.6,3315.3,0.211]
[1736510215731,1.31256569,3315.6,3315.4,0.03485794]
[1736510218322,1.31256569,3315.6,3315.5,0.03481742]
[1736510218694,1.31256569,3315.6,3315.3,0.211]
[1736510218895,1.31256569,3315.6,3315.5,0.03481742]
[1736510219091,1.31256569,3315.6,3315.4,0.03485794]
[1736510219329,1.31256569,3315.6,3315.5,0.03481742]
[1736510219738,1.31256569,3315.6,3315.3,0.211]
[1736510219934,1.31256569,3315.6,3315.5,0.03481742]
[1736510220109,1.31256569,3315.6,3315.4,0.03485794]
[1736510220432,1.31256569,3315.6,3315.5,0.03481742]
[1736510220923,1.31256569,3315.6,3315.5,0.03467256]
[1736510221358,1.31256569,3315.6,3315.3,0.211]
[1736510221497,1.31256569,3315.6,3315.5,0.03451864]
[1736510221695,1.31256569,3315.6,3315.4,0.03455916]
[1736510221896,1.31256569,3315.6,3315.5,0.03451864]
[1736510222315,1.31256569,3315.6,3315.3,0.211]
[1736510222521,1.31256569,3315.6,3315.5,0.03451864]
[1736510222723,1.31256569,3315.6,3315.4,0.03455916]
[1736510222938,1.31256569,3315.6,3315.5,0.03451864]
[1736510223325,1.31256569,3315.6,3315.4,0.0075]
[1736510223636,3.77742,3316.1,3315.6,0.015]
[1736510223637,0.7618,3316.1,3315.6,0.015]
[1736510223797,1.31256569,3316.0,3315.6,0.015]
[1736510224214,1.31256569,3316.0,3315.8,0.0075]
[1736510224629,1.31256569,3316.0,3315.9,0.03435659]
[1736510226236,1.31256569,3316.0,3315.5,0.015]
[1736510226411,1.31256569,3316.0,3315.6,0.0075]
[1736510226612,1.31256569,3316.0,3315.7,0.015]
[1736510227045,1.31256569,3316.0,3315.8,0.0343971]
[1736510230022,3.82293,3316.3,3315.8,0.0343971]
[1736510230229,1.31256569,3315.9,3315.8,0.0343971]
[1736510230931,2.06586569,3315.9,3315.8,0.0343971]
[1736510231134,0.7533,3315.9,3315.8,0.2453971]
[1736510231332,0.7533,3315.9,3315.8,0.211]
[1736510231535,0.7533,3315.9,3315.8,0.24499882]
[1736510233558,1.31256569,3316.0,3315.8,0.24499882]
[1736510236363,1.31256569,3316.1,3315.8,0.24499882]
[1736510238267,1.31256569,3315.9,3315.8,0.24499882]
[1736510238575,0.8283,3315.9,3315.8,0.24499882]
[1736510238742,4.05815657,3315.9,3315.8,0.03399882]
[1736510239068,4.05815657,3315.9,3315.8,0.211]
[1736510239280,0.55,3315.4,3314.4,4.228]
[1736510239427,0.55,3315.4,3314.5,0.24445851]
[1736510239428,1.31256569,3314.9,3314.5,0.24445851]
[1736510239637,1.31256569,3314.9,3314.5,0.03345851]
[1736510239864,1.31256569,3314.9,3314.6,0.211]
[1736510240259,1.31256569,3314.9,3314.7,0.03337743]
[1736510242273,1.31256569,3314.9,3314.8,0.211]
[1736510242460,1.31256569,3314.9,3314.8,0.24433689]
[1736510244474,1.31256569,3314.9,3314.8,0.03333689]
[1736510244819,1.65790883,3314.9,3314.8,0.211]
[1736510244931,1.65790883,3314.9,3314.8,0.24433689]
[1736510245133,4.70012314,3314.9,3314.8,0.03333689]
[1736510245340,7.47481813,3314.9,3314.8,0.24433689]
[1736510245637,7.47481813,3314.9,3314.8,0.211]
[1736510247082,10.47481813,3314.9,3314.8,0.211]
[1736510247475,7.70012314,3314.9,3314.8,0.211]
[1736510247661,10.47481813,3314.9,3314.8,0.211]
[1736510249776,3.01704,3314.5,3314.4,4.228]
[1736510249965,7.46876899,3314.5,3314.4,4.439]
[1736510251664,7.46876899,3314.5,3314.4,4.47382016]
[1736510251995,7.46876899,3314.5,3314.4,4.439]
[1736510252792,7.09203499,3314.5,3314.4,4.439]
[1736510253205,7.09203499,3314.5,3314.4,4.47382016]
[1736510255285,7.09203499,3314.5,3314.4,0.24582016]
[1736510255473,7.09203499,3314.5,3314.4,0.211]
[1736510262309,4.07499499,3314.5,3314.4,0.211]
[1736510262515,1.3003,3314.5,3314.4,0.211]
[1736510263408,4.31734,3314.5,3314.4,0.211]
[1736510263617,7.09203499,3314.5,3314.4,0.211]
[1736510267388,5.63069992,3314.5,3314.4,0.211]
[1736510270144,3.0169,3314.7,3314.4,0.211]
[1736510270345,1.31335992,3314.5,3314.4,0.211]
[1736510275108,4.33039992,3314.5,3314.4,0.211]
[1736510275909,5.31343991,3314.5,3314.4,0.211]
[1736510276409,6.07903991,3314.5,3314.4,0.211]
[1736510278918,5.64599992,3314.5,3314.4,0.211]
[1736510279217,4.88039992,3314.5,3314.4,0.211]
[1736510279515,4.33039992,3314.5,3314.4,0.211]
[1736510280477,1.31335992,3314.5,3314.4,0.211]
[1736510282936,3.84709,3314.7,3314.4,0.211]
[1736510283233,1.31335992,3314.6,3314.4,0.211]
[1736510284198,5.16044992,3314.7,3314.4,0.211]
[1736510284597,5.16044992,3314.7,3314.5,0.03477055]
[1736510285248,3.01695,3314.6,3314.5,0.03477055]
[1736510285446,3.53299499,3314.6,3314.5,0.03477055]
[1736510285726,3.01695,3314.6,3314.4,0.211]
[1736510285887,1.31335992,3314.5,3314.4,0.211]
[1736510288201,2.14355992,3314.7,3314.4,0.211]
[1736510289390,1.31335992,3314.7,3314.4,0.211]
[1736510289750,3.01684,3314.8,3314.4,0.211]
[1736510290827,3.785,3315.0,3314.4,0.211]
[1736510290828,3.80162,3315.0,3314.4,0.211]
[1736510291013,3.01662,3315.0,3314.4,0.211]
[1736510291215,1.31335992,3314.9,3314.4,0.211]
[1736510291394,1.31335992,3314.9,3314.5,0.0346755]
[1736510291849,0.55,3315.0,3314.5,0.0346755]
[1736510294001,1.31335992,3314.9,3314.5,0.0346755]
[1736510294549,1.31335992,3314.9,3314.6,0.03463496]
[1736510294903,1.31335992,3314.9,3314.4,0.211]
[1736510295103,1.31335992,3314.9,3314.5,0.0346755]
[1736510306933,4.33004992,3314.9,3314.5,0.0346755]
[1736510313325,3.01679,3314.8,3314.5,0.0346755]
[1736510313531,1.31335992,3314.9,3314.5,0.0346755]
[1736510317235,1.31335992,3314.9,3314.6,0.211]
[1736510317727,4.37207,3314.8,3314.7,0.03406952]
[1736510318027,4.37207,3314.8,3314.7,0.211]
[1736510321637,5.68542992,3314.8,3314.7,0.211]
[1736510325351,1.86335992,3314.8,3314.7,0.211]
[1736510329448,0.8325,3315.0,3314.7,0.211]
[1736510329650,8.38652,3315.1,3314.7,0.211]
[1736510329950,9.69987992,3315.1,3314.8,0.03400181]
[1736510330256,1.31335992,3314.9,3314.7,0.211]
[1736510331719,1.31335992,3314.9,3314.8,0.03398371]
[1736510331923,1.31335992,3314.9,3314.7,0.211]
[1736510332120,1.31335992,3314.9,3314.8,0.03398371]
[1736510332360,1.31335992,3314.9,3314.7,0.211]
[1736510333458,0.55,3315.0,3314.7,0.211]
[1736510333625,1.31335992,3314.8,3314.7,0.211]
[1736510334956,3.7977,3315.5,3314.8,0.0075]
[1736510335155,1.31335992,3315.3,3314.8,0.0075]
[1736510336256,0.55,3315.5,3314.8,0.0075]
[1736510336462,1.31335992,3315.3,3314.8,0.0075]
[1736510337144,0.55,3315.5,3314.8,0.0075]
[1736510337350,1.31335992,3315.4,3314.8,0.0075]
[1736510337545,1.31335992,3315.2,3314.8,0.0075]
[1736510338122,1.31335992,3315.0,3314.7,0.211]
[1736510338874,3.0,3315.7,3314.7,0.211]
[1736510338875,0.7904,3315.5,3314.8,0.0075]
[1736510339021,1.31335992,3315.4,3314.8,0.0075]
[1736510339220,1.31335992,3315.4,3314.8,0.015]
[1736510340379,1.31335992,3315.4,3314.9,0.03384818]
[1736510341038,6.1604,3315.8,3314.9,0.03384818]
[1736510341240,1.31335992,3315.4,3315.0,0.0075]
[1736510341782,1.31335992,3315.6,3315.1,0.03376712]
[1736510343339,1.31335992,3315.6,3315.2,0.0075]
[1736510344067,1.31335992,3315.6,3315.3,0.03368607]
[1736510344443,1.31335992,3315.6,3315.0,0.0075]
[1736510344758,1.31335992,3315.6,3315.1,0.0075]
[1736510344966,1.31335992,3315.6,3315.2,0.0075]
[1736510345343,1.31335992,3315.6,3315.3,0.03368607]
[1736510345561,1.31335992,3315.6,3315.0,0.015]
[1736510345731,1.31335992,3315.6,3315.4,0.03364555]
[1736510345931,1.31335992,3315.6,3315.0,0.015]
[1736510346138,1.31335992,3315.6,3315.2,0.0075]
[1736510346343,1.31335992,3315.6,3315.3,0.03368607]
[1736510346576,1.31335992,3315.6,3315.2,0.0075]
[1736510346890,1.31335992,3315.6,3315.4,0.03340585]
[1736510347175,1.31335992,3315.6,3315.5,0.03336533]
[1736510347568,1.31335992,3315.6,3315.0,0.015]
[1736510347864,3.01586,3315.9,3315.5,0.03336533]
[1736510348173,1.31335992,3315.7,3315.6,0.24332481]
[1736510349548,0.55,3315.9,3315.6,0.24332481]
[1736510349871,1.86335992,3315.9,3315.6,0.21]
[1736510350439,1.31335992,3315.7,3315.6,0.21]
[1736510352277,3.56571,3316.0,3315.6,0.21]
[1736510352463,1.31335992,3315.9,3315.6,0.21]
[1736510353283,3.56571,3316.0,3315.6,0.21]
[1736510353484,1.31335992,3315.8,3315.6,0.21]
[1736510355491,1.31335992,3315.8,3315.7,0.03295411]
[1736510356185,0.55,3316.0,3315.7,0.03295411]
[1736510356390,1.31335992,3315.9,3315.7,0.03295411]
[1736510357191,1.31335992,3315.9,3315.6,0.21]
[1736510357705,1.31335992,3315.9,3315.7,0.03284558]
[1736510359478,1.31335992,3315.8,3315.7,0.03284558]
[1736510360089,1.31335992,3316.0,3315.7,0.03284558]
[1736510360299,1.31335992,3316.2,3315.7,0.03284558]
[1736510361675,1.31335992,3316.2,3315.8,0.0075]
[1736510362078,1.31335992,3316.2,3315.9,0.03276456]
[1736510363199,1.31335992,3316.4,3316.0,0.0075]
[1736510363406,0.9996953,3316.5,3316.0,0.0075]
[1736510363407,0.1687953,3316.5,3316.0,0.0075]
[1736510363766,0.1687953,3316.5,3316.1,0.03268355]
[1736510364410,1.48215522,3316.5,3316.1,0.03268355]
[1736510365906,0.1687953,3316.5,3316.1,0.03268355]
[1736510366213,0.1687953,3316.5,3316.2,0.0075]
[1736510366710,0.1687953,3316.5,3316.3,0.03220019]
[1736510369608,0.1687953,3316.5,3316.3,0.64343124]
[1736510371211,0.1687953,3316.5,3316.3,0.03220019]
[1736510372621,0.1687953,3316.5,3316.4,0.0075]
[1736510373117,0.1687953,3316.5,3316.4,0.03929352]
[1736510384227,0.1687953,3316.5,3316.4,0.24929352]
[1736510385938,0.1687953,3316.5,3316.4,0.24179352]
[1736510393349,0.1687953,3316.5,3316.4,0.21]
[1736510393549,0.1687953,3316.5,3316.4,0.24150034]
[1736510399080,1.48215522,3316.5,3316.4,0.24150034]
[1736510401457,0.1687953,3316.5,3316.4,0.24150034]
[1736510403504,0.1687953,3316.5,3316.4,0.24900034]
[1736510403728,0.1687953,3316.5,3316.4,0.24150034]
[1736510403939,0.9678953,3316.5,3316.4,0.03150034]
[1736510404236,5.84647522,3316.5,3316.4,0.24150034]
[1736510404436,8.84647522,3316.5,3316.4,0.03150034]
[1736510404637,8.84647522,3316.5,3316.4,0.24150034]
[1736510405070,10.26812274,3316.5,3316.4,0.24150034]
[1736510405352,0.8045,3316.2,3315.3,4.227]
[1736510405496,0.8045,3315.5,3315.4,0.21]
[1736510405928,0.8219,3315.8,3315.4,0.21]
[1736510406154,0.8219,3316.2,3315.4,0.21]
[1736510406303,0.8219,3316.2,3315.5,0.0075]
[1736510406498,0.55,3316.1,3315.4,0.21]
[1736510406713,2.77246305,3315.7,3315.3,4.227]
[1736510406928,0.90878631,3315.6,3315.4,0.21]
[1736510407153,0.55,3315.6,3315.4,0.21]
[1736510407325,3.56604,3315.6,3315.5,0.21]
[1736510407531,4.37564,3315.6,3315.5,0.21]
[1736510407727,0.55,3315.5,3315.3,4.227]
[1736510407942,3.56622,3315.4,3315.3,4.227]
[1736510408263,3.56622,3315.4,3315.3,4.437]
[1736510408264,11.16150905,3315.4,3315.3,4.437]
[1736510408473,0.8096,3315.4,3315.3,4.437]
[1736510408818,3.58206305,3315.4,3315.3,4.437]
[1736510409068,7.14828305,3315.4,3315.3,4.437]
[1736510409271,0.8096,3315.4,3315.3,4.437]
[1736510409472,0.7884,3315.7,3315.3,4.437]
[1736510409976,7.15308305,3315.4,3315.3,4.227]
[1736510410277,7.15308305,3315.4,3315.3,4.437]
[1736510411333,0.7541,3315.6,3315.3,4.437]
[1736510411549,6.56108305,3315.4,3315.3,4.437]
[1736510412218,7.11108305,3315.4,3315.3,4.437]
[1736510412419,5.04972831,3315.4,3315.3,4.437]
[1736510412647,2.77246305,3315.9,3315.3,4.437]
[1736510412924,3.79038,3316.0,3315.3,4.437]
[1736510413118,2.77246305,3315.9,3315.3,4.437]
[1736510413639,0.55,3315.8,3315.3,4.437]
[1736510413944,0.55,3315.5,3315.3,4.437]
[1736510414151,1.3645,3315.5,3315.3,4.437]
[1736510414346,5.09594531,3315.5,3315.3,4.437]
[1736510414548,5.09594531,3315.5,3315.3,4.227]
[1736510414867,2.07980531,3315.5,3315.3,4.227]
[1736510415061,1.3645,3315.5,3315.4,0.21]
[1736510416173,0.55,3315.5,3315.4,0.21]
[1736510416369,0.8321,3315.9,3315.4,0.21]
[1736510416869,0.55,3315.8,3315.4,0.21]
[1736510417768,2.77246305,3316.3,3315.5,0.0075]
[1736510420504,0.55,3316.2,3315.5,0.0075]
[1736510422181,0.55,3316.3,3315.5,0.0075]
[1736510424942,3.32246305,3316.3,3315.5,0.0075]
[1736510430404,0.55,3316.3,3315.5,0.0075]
[1736510430968,3.32246305,3316.3,3315.5,0.0075]
[1736510432871,3.32246305,3316.3,3315.6,0.215]
[1736510433904,0.55,3316.3,3315.6,0.215]
[1736510434206,0.1687953,3316.5,3315.7,0.015]
[1736510434422,0.1687953,3316.5,3315.8,0.0075]
[1736510434614,0.1687953,3316.5,3316.0,3.03066]
[1736510434916,0.1687953,3316.5,3316.1,0.0075]
[1736510435210,0.1687953,3316.5,3316.3,0.0075]
[1736510435573,0.1687953,3316.5,3316.4,0.215]
[1736510435775,0.1687953,3316.5,3316.4,3.23031]
[1736510436391,0.1687953,3316.5,3316.4,0.215]
[1736510437936,0.1687953,3316.5,3316.4,0.23]
[1736510439183,0.1687953,3316.5,3316.4,0.84531306]
[1736510463968,0.1687953,3316.5,3316.4,3.86062306]
[1736510466078,0.1687953,3316.5,3316.4,0.83781306]
[1736510466275,0.1687953,3316.5,3316.4,0.82831306]
[1736510466575,0.9536953,3316.5,3316.4,0.82831306]
[1736510466977,0.9536953,3316.5,3316.0,3.01567]
[1736510466978,0.24999152,3316.3,3315.9,0.0075]
[1736510467141,0.24999152,3316.3,3316.0,0.213]
[1736510467142,5.61999152,3316.3,3316.0,0.213]
[1736510467346,0.8041,3316.2,3316.0,0.213]
[1736510467846,0.8041,3316.2,3316.0,0.59362412]
[1736510468042,0.8041,3316.2,3316.1,0.213]
[1736510469260,0.49998302,3316.0,3315.5,4.226]
[1736510469443,0.53768149,3316.0,3315.6,0.8221441]
[1736510469647,6.31910594,3316.0,3315.6,0.8221441]
[1736510469982,1.32468302,3315.7,3315.6,0.8221441]
[1736510471549,1.32468302,3315.7,3315.6,0.213]
[1736510472057,1.36238499,3315.7,3315.6,0.213]
[1736510473048,1.32468302,3315.7,3315.6,0.213]
[1736510476792,5.37,3316.0,3315.7,0.0075]
[1736510476993,5.37,3316.0,3315.8,3.02329]
[1736510477160,5.37,3316.0,3315.9,0.0075]
[1736510477560,5.37,3316.0,3315.9,0.228]
[1736510477756,5.37,3316.0,3315.9,3.24377]
[1736510478157,0.1687953,3316.5,3316.1,0.0075]
[1736510478158,0.41878682,3316.5,3316.1,0.0075]
[1736510478891,0.1687953,3316.5,3316.3,0.015]
[1736510479094,0.1687953,3316.5,3316.3,0.0075]
[1736510479278,0.41878682,3316.5,3316.3,0.0075]
[1736510485104,0.66877832,3316.5,3316.3,0.0075]
[1736510488726,0.41878682,3316.5,3316.3,0.0075]
[1736510489027,0.66877832,3316.5,3316.4,0.213]
[1736510491644,0.66877832,3316.5,3315.8,3.01582]
[1736510491645,0.78,3316.4,3315.8,3.01582]
[1736510491851,0.78,3316.4,3315.9,0.2355]
[1736510492148,0.78,3316.4,3315.9,3.25124]
[1736510492319,0.78,3316.4,3316.2,0.0075]
[1736510499161,0.78,3316.4,3316.1,0.015]
[1736510501831,0.66877832,3316.5,3316.1,0.015]
[1736510520093,0.66877832,3316.5,3316.2,0.217]
[1736510521418,6.03877832,3316.5,3316.2,0.217]
[1736510524424,6.03877832,3316.5,3316.3,0.0075]
[1736510525019,0.1687953,3316.5,3316.4,3.03781]
[1736510526316,0.1687953,3316.5,3316.4,6.03781]
[1736510527327,0.1687953,3316.5,3316.4,8.80643523]
[1736510530339,0.1687953,3316.5,3316.4,6.03031]
[1736510530626,0.1687953,3316.5,3316.4,3.03031]
[1736510530830,0.4187868,3316.5,3316.0,0.60893592]
[1736510531134,0.4187868,3316.5,3316.4,0.213]